bitfinex/quotes_ETHUSD_20220106
["timestamp","ask_amount","ask_price","bid_price","bid_amount"]
[1641435860326,0.00227369,3511.7,3511.4,0.14236]
[1641435860524,0.00227369,3511.7,3511.6,0.07118]
[1641435860724,6.245,3512.2,3511.6,0.78298]
[1641435860924,6.245,3512.2,3511.7,1.46267441]
[1641435861165,0.00454738,3512.1,3511.7,1.46267441]
[1641435861367,0.00454738,3512.1,3511.6,0.78298]
[1641435861563,6.245,3512.2,3511.4,0.14236]
[1641435861564,0.00397896,3512.0,3511.4,0.14236]
[1641435861964,0.00341054,3511.9,3511.4,0.14236]
[1641435862367,0.00284211,3511.8,3511.5,0.71182]
[1641435862568,0.00284211,3511.8,3511.5,1.01182]
[1641435862768,0.00227369,3511.7,3511.5,1.01182]
[1641435863170,0.00170527,3511.6,3511.5,1.01182]
[1641435867020,0.00170527,3511.6,3511.4,0.14236]
[1641435867418,0.00113684,3511.5,3511.4,0.14236]
[1641435868021,0.00113684,3511.5,3511.4,1.45181644]
[1641435868219,0.00113684,3511.5,3511.4,2.09065104]
[1641435868419,0.00113684,3511.5,3511.4,2.05181644]
[1641435869060,0.00113684,3511.5,3511.4,3.05181644]
[1641435869262,0.00113684,3511.5,3511.4,7.90181644]
[1641435869463,0.00113684,3511.5,3511.4,8.90181644]
[1641435869862,0.00113684,3511.5,3511.4,25.48181644]
[1641435871965,5.0,3512.2,3512.1,1.38776846]
[1641435872165,5.0,3512.2,3512.1,2.76768809]
[1641435872421,5.0,3512.2,3512.1,3.06768809]
[1641435875218,5.0,3512.2,3512.1,5.86768809]
[1641435875417,5.0,3512.2,3512.1,22.44768809]
[1641435875819,5.0,3512.2,3512.1,22.74768809]
[1641435876270,5.0,3512.2,3512.1,23.39788809]
[1641435877470,5.0,3512.2,3512.1,22.74768809]
[1641435877670,1.13593116,3512.2,3512.1,22.74768809]
[1641435877873,2.35291617,3512.1,3511.9,0.85398]
[1641435878071,2.35291617,3512.1,3511.4,0.07119]
[1641435878273,2.35291617,3512.1,3511.0,6.6806265]
[1641435878274,2.35632671,3512.1,3511.0,6.6806265]
[1641435878571,2.35632671,3512.1,3511.0,6.71387704]
[1641435878771,2.35632671,3512.1,3511.6,2.71455572]
[1641435878972,2.35632671,3512.1,3511.9,16.58]
[1641435879174,2.35632671,3512.1,3511.9,16.91265379]
[1641435879376,2.35632671,3512.1,3512.0,0.0357283]
[1641435879577,2.35632671,3512.1,3512.0,16.6157283]
[1641435879773,2.35632671,3512.1,3512.0,49.27282669]
[1641435881025,2.671e-05,3512.1,3512.0,49.27282669]
[1641435881225,2.671e-05,3512.1,3512.0,49.38002669]
[1641435881426,2.671e-05,3512.1,3512.0,49.38082669]
[1641435881626,2.671e-05,3512.1,3512.0,50.38162669]
[1641435881827,1.13593116,3512.2,3512.1,24.78]
[1641435882028,1.13593116,3512.2,3512.1,26.41790359]
[1641435882330,1.13593116,3512.2,3512.1,26.38]
[1641435882728,1.13593116,3512.2,3512.1,30.6469507]
[1641435884271,1.13593116,3512.2,3512.1,30.7533507]
[1641435884475,3.913,3513.6,3512.6,0.3557226]
[1641435884676,9.3731,3514.1,3512.5,1.0114451]
[1641435884677,8.0228,3514.0,3512.5,1.1421451]
[1641435884879,8.0228,3514.0,3512.7,8.2]
[1641435885079,8.0228,3514.0,3513.7,1.40017467]
[1641435885080,0.00682109,3513.9,3513.7,1.40017467]
[1641435885274,0.00682109,3513.9,3513.8,1.46392322]
[1641435885475,2.09999512,3514.5,3513.8,2.47522322]
[1641435885675,2.09999512,3514.7,3513.8,2.47522322]
[1641435885875,0.0096632,3514.4,3514.1,1.5]
[1641435886076,0.01248109,3514.3,3514.1,1.8]
[1641435886275,0.02157587,3514.3,3514.1,1.8]
[1641435886475,0.00852636,3514.2,3514.1,1.8]
[1641435886676,0.00852636,3514.2,3514.1,1.5]
[1641435887074,0.00852636,3514.2,3514.1,1.8]
[1641435887274,6.17852636,3514.2,3514.1,3.01262744]
[1641435887920,6.12852636,3514.2,3514.1,3.01262744]
[1641435890922,6.12852636,3514.2,3514.1,1.8]
[1641435891770,8.37399618,3514.2,3514.1,1.5]
[1641435891968,10.73809508,3514.2,3514.1,1.5]
[1641435892369,8.49262526,3514.2,3514.1,1.5]
[1641435892771,7.12852636,3514.2,3514.1,1.5]
[1641435893975,8.63224752,3514.2,3514.1,1.5]
[1641435896629,7.63224752,3514.2,3514.1,1.5]
[1641435897025,9.78697965,3514.2,3514.1,1.5]
[1641435897626,7.63224752,3514.2,3514.1,1.5]
[1641435898674,9.85096737,3514.2,3514.1,1.5]
[1641435898876,7.63224752,3514.2,3514.1,1.5]
[1641435899776,6.12852636,3514.2,3514.1,1.5]
[1641435901579,7.42742936,3514.2,3514.1,1.5]
[1641435902419,6.12852636,3514.2,3514.1,1.5]
[1641435903828,8.2766826,3514.2,3514.1,1.5]
[1641435904124,8.2766826,3514.2,3512.2,7.4972664]
[1641435904125,8.25,3514.1,3512.2,7.4972664]
[1641435904325,0.7116523,3513.7,3513.3,1.5]
[1641435904525,2.6444496,3513.6,3513.3,1.5]
[1641435904724,0.345,3513.6,3513.3,1.5]
[1641435905527,2.14295637,3513.5,3513.3,1.5]
[1641435905724,1.28304504,3513.5,3513.3,1.5]
[1641435906181,1.7682959,3513.6,3513.3,1.5]
[1641435906372,0.345,3513.6,3513.3,1.5]
[1641435906770,1.05663,3513.6,3513.3,1.5]
[1641435907570,2.27440816,3513.6,3513.3,1.5]
[1641435907775,2.98603806,3513.6,3513.3,1.5]
[1641435907977,1.7682599,3513.6,3513.3,1.5]
[1641435908376,1.7682599,3513.6,3512.3,0.04165452]
[1641435908377,0.01204779,3513.4,3512.3,0.04165452]
[1641435908577,0.01204779,3513.4,3512.8,1.5]
[1641435908578,0.345,3513.3,3512.8,1.5]
[1641435908777,0.71176,3513.1,3512.8,1.5]
[1641435908976,0.71176,3513.1,3512.9,0.00738951]
[1641435908977,0.345,3513.0,3512.9,0.00738951]
[1641435909476,1.74046389,3513.0,3512.9,0.00738951]
[1641435909917,9.14046389,3513.0,3512.9,0.00738951]
[1641435910122,2.74046389,3513.0,3512.9,0.00738951]
[1641435910320,1.345,3513.0,3512.2,0.01136847]
[1641435910520,0.345,3513.0,3512.2,0.01136847]
[1641435915971,0.345,3513.0,3512.1,1.57374775]
[1641435916172,0.00397896,3512.9,3512.1,1.57374775]
[1641435916472,0.00341054,3512.8,3512.1,1.57374775]
[1641435916873,0.00284211,3512.7,3512.1,1.57374775]
[1641435917273,0.00227369,3512.6,3512.1,1.57374775]
[1641435917728,0.00170527,3512.5,3512.1,1.57374775]
[1641435918127,0.00113684,3512.4,3512.1,1.57374775]
[1641435918329,0.00113684,3512.4,3512.1,0.26136847]
[1641435918727,0.00113684,3512.4,3512.0,2.1]
[1641435919327,0.00113684,3512.4,3512.1,1.16594549]
[1641435926536,0.00113684,3512.4,3512.0,2.1]
[1641435930176,5.66287994,3512.6,3512.0,2.1]
[1641435930380,5.66287994,3512.6,3512.1,0.00170527]
[1641435936774,5.0,3512.6,3512.1,0.00170527]
[1641435936971,1.4236781,3512.4,3512.1,0.00170527]
[1641435937172,1.7686781,3512.4,3512.1,0.00170527]
[1641435937971,2.1356733,3512.3,3512.1,0.00170527]
[1641435938173,3.1356733,3512.3,3512.1,0.00170527]
[1641435938372,3.8475544,3512.3,3512.1,0.00170527]
[1641435940818,1.21634452,3512.2,3512.1,0.00170527]
[1641435941318,0.0545754,3511.2,3510.8,0.78308]
[1641435941519,0.0545754,3511.2,3509.8,8.25953689]
[1641435941520,0.345,3511.1,3509.8,8.25953689]
[1641435941719,0.01216046,3510.9,3509.8,4.30133689]
[1641435941923,0.01216046,3510.9,3509.8,4.2669507]
[1641435941924,0.71224,3510.6,3509.8,4.2669507]
[1641435942124,0.71224,3510.6,3509.9,0.01250531]
[1641435942125,1.12687481,3510.5,3509.9,0.01250531]
[1641435942519,1.05728,3510.4,3509.9,0.01250531]
[1641435943124,1.05728,3510.4,3509.8,0.01307374]
[1641435943425,0.71233,3510.1,3509.8,0.01307374]
[1641435943872,0.71233,3510.1,3508.3,3.0124]
[1641435943873,0.85052997,3510.1,3509.5,0.01477901]
[1641435944072,1.5791,3510.0,3509.5,0.01477901]
[1641435944276,1.5791,3510.0,3508.5,0.02046324]
[1641435944277,0.7124343,3509.3,3508.5,0.02046324]
[1641435944480,1.47967008,3509.0,3508.3,1.1336368]
[1641435944675,3.62483,3509.5,3508.3,1.1336368]
[1641435944876,3.62483,3509.5,3508.4,0.02103167]
[1641435945177,0.345,3509.4,3508.4,0.02103167]
[1641435945377,0.7124587,3509.1,3508.4,0.02103167]
[1641435945577,2.1999,3509.5,3508.3,0.02160009]
[1641435945778,2.1999,3509.5,3507.7,6.31521557]
[1641435945779,2.1999,3509.5,3507.9,0.02387378]
[1641435945978,1.1999,3509.5,3507.8,0.13404221]
[1641435946178,1.49862324,3509.4,3507.9,0.02387378]
[1641435946378,1.49862324,3509.4,3508.3,1.2060809]
[1641435946581,1.1999,3509.5,3508.3,1.24109786]
[1641435946779,0.7124241,3509.3,3508.4,0.02103167]
[1641435946982,0.7124241,3509.3,3508.4,0.06054796]
[1641435947419,0.7124241,3509.3,3508.5,0.02046324]
[1641435948627,0.7124241,3509.3,3508.7,1.17400096]
[1641435948827,1.1999,3509.5,3508.7,1.17400096]
[1641435949027,1.1999,3509.5,3508.8,0.01875797]
[1641435949827,1.24877574,3509.4,3508.8,0.01875797]
[1641435950026,2.1999,3509.5,3508.8,0.01875797]
[1641435950228,2.1999,3509.5,3508.9,0.00102346]
[1641435950431,1.1999,3509.5,3508.9,0.00102346]
[1641435950633,1.1999,3509.5,3508.7,1.17400096]
[1641435950634,0.71136974,3508.9,3508.7,1.17400096]
[1641435950840,0.71136974,3508.9,3508.3,1.2060809]
[1641435951030,0.71136974,3508.9,3508.8,0.01875797]
[1641435952385,0.61136974,3508.9,3508.8,0.01875797]
[1641435953387,0.61136974,3508.9,3508.1,0.02273694]
[1641435954188,0.61136974,3508.9,3508.3,1.12768371]
[1641435954692,0.61136974,3508.9,3508.4,0.02103167]
[1641435955125,0.91136974,3508.9,3508.4,0.02103167]
[1641435957826,0.61136974,3508.9,3508.4,0.02103167]
[1641435960877,0.61136974,3508.9,3508.5,0.00097739]
[1641435961275,0.61136974,3508.9,3508.6,0.01989482]
[1641435963926,0.91136974,3508.9,3508.6,0.01989482]
[1641435964124,0.3,3508.9,3508.6,0.01989482]
[1641435964522,0.66565488,3509.2,3508.6,0.01989482]
[1641435964724,0.71244,3509.0,3508.6,0.01989482]
[1641435964928,0.7123932,3508.9,3508.6,0.01989482]
[1641435967775,5.7123932,3508.9,3508.6,0.01989482]
[1641435968676,5.0,3508.9,3508.6,0.01989482]
[1641435971422,5.0,3508.9,3508.7,0.00095707]
[1641435973231,5.71245,3508.9,3508.7,0.00095707]
[1641435974771,6.4248705,3508.9,3508.7,0.00095707]
[1641435977927,5.71245,3508.9,3508.7,0.00095707]
[1641435978127,5.0,3508.9,3508.7,0.00095707]
[1641435979528,1.13305022,3508.9,3508.8,9.50287131]
[1641435979929,1.13305022,3508.9,3508.8,10.90695105]
[1641435980129,1.13305022,3508.9,3508.8,2.65695105]
[1641435980636,1.13305022,3508.9,3508.7,0.00095707]
[1641435982073,2.53811693,3508.9,3508.7,0.00095707]
[1641435982472,1.13305022,3508.9,3508.7,0.00095707]
[1641435983277,1.84555022,3508.9,3508.7,0.00095707]
[1641435984275,1.13305022,3508.9,3508.7,0.00095707]
[1641435989569,8.90896121,3508.8,3508.7,0.00095707]
[1641435989771,8.90896121,3508.8,3508.6,5.189e-05]
[1641435989772,7.95,3508.7,3508.6,5.189e-05]
[1641435989971,1.3,3508.7,3507.7,1.418]
[1641435990173,0.3,3508.7,3507.7,1.418]
[1641435990371,0.31361171,3508.8,3507.7,1.418]
[1641435990372,2.47511171,3508.8,3507.7,1.418]
[1641435990776,1.42538,3508.3,3507.7,1.418]
[1641435990980,0.7127199,3508.0,3507.7,1.418]
[1641435991176,0.71269,3508.3,3507.7,1.418]
[1641435991177,1.07743153,3507.9,3507.7,1.418]
[1641435991379,1.07743153,3507.9,3507.5,0.7122474]
[1641435991778,1.07743153,3507.9,3507.6,0.00573612]
[1641435992432,1.07743153,3507.9,3507.7,0.0009929]
[1641435992621,2.50289153,3507.9,3507.7,0.0009929]
[1641435992824,3.21562023,3507.9,3507.8,0.00459928]
[1641435993426,4.21562023,3507.9,3507.8,0.00459928]
[1641435993629,3.51562023,3507.9,3507.8,0.00459928]
[1641435994026,4.51562023,3507.9,3507.8,0.00459928]
[1641435995026,0.7127287,3507.9,3507.8,0.00459928]
[1641435995227,1.77031,3508.4,3507.8,0.00459928]
[1641435996028,1.77031,3508.4,3508.1,2.94186519]
[1641435996276,1.40407472,3507.9,3507.8,0.00459928]
[1641435996474,1.40407472,3507.9,3507.7,0.0009929]
[1641435996677,1.40407472,3507.9,3507.8,0.00459928]
[1641435997278,0.712636,3508.1,3507.8,0.00459928]
[1641435998078,2.6166269,3508.3,3507.8,0.00459928]
[1641436000625,1.19047228,3507.9,3507.8,0.00459928]
[1641436002226,0.7126391,3508.2,3507.8,0.00459928]
[1641436003127,0.7126391,3508.2,3507.9,0.00095905]
[1641436003326,1.49767398,3508.1,3507.9,0.00095905]
[1641436003526,1.49767398,3508.1,3508.0,0.00346243]
[1641436006281,1.79767398,3508.1,3508.0,0.00346243]
[1641436006484,3.91130618,3508.1,3508.0,0.00346243]
[1641436006882,1.79767398,3508.1,3508.0,0.00346243]
[1641436007727,3.91352596,3508.1,3508.0,0.00346243]
[1641436008327,1.79767398,3508.1,3508.0,0.00346243]
[1641436008727,1.49767398,3508.1,3508.0,0.00346243]
[1641436009726,3.62534535,3508.1,3508.0,0.00346243]
[1641436010428,1.49767398,3508.1,3508.0,0.00346243]
[1641436014382,1.49767398,3508.1,3507.6,0.00573612]
[1641436014580,0.71267,3507.9,3507.6,0.00573612]
[1641436015434,1.01267,3507.9,3507.6,0.00573612]
[1641436016439,1.72534,3507.9,3507.6,0.00573612]
[1641436016638,1.42534,3507.9,3507.6,0.00573612]
[1641436016840,2.1382938,3507.8,3507.6,0.00573612]
[1641436017048,2.4832938,3507.8,3507.6,0.00573612]
[1641436017243,0.3,3507.7,3507.6,0.00573612]
[1641436017441,5.295,3507.7,3507.6,0.00573612]
[1641436017642,5.25,3507.6,3506.0,0.0342237]
[1641436017842,5.25,3507.6,3505.9,4.00214494]
[1641436017843,1.4795398,3506.1,3505.9,4.00214494]
[1641436018041,1.4795398,3506.1,3505.8,5.444006]
[1641436018042,1.4795398,3506.1,3505.8,5.47753191]
[1641436018242,0.71293,3506.8,3505.8,6.89553191]
[1641436018441,0.71293,3506.8,3505.9,0.0096632]
[1641436019074,2.16571832,3506.7,3505.9,0.0096632]
[1641436019375,0.713,3506.5,3505.9,0.0096632]
[1641436019975,1.07757319,3506.0,3505.9,0.0096632]
[1641436020377,0.71293,3506.8,3505.9,0.0096632]
[1641436020679,1.42578,3507.1,3505.9,0.0096632]
[1641436020876,3.33622848,3507.3,3505.9,0.0096632]
[1641436021277,1.42581,3506.8,3505.6,0.01136847]
[1641436021478,1.29568599,3505.9,3505.7,1.01771597]
[1641436021877,1.29568599,3505.9,3505.8,0.01023163]
[1641436023329,1.29568599,3505.9,3505.5,0.0119369]
[1641436024428,1.29568599,3505.9,3505.6,0.00126401]
[1641436024930,1.29568599,3505.9,3505.7,0.01080005]
[1641436025331,1.59568599,3505.9,3505.7,0.01080005]
[1641436027679,2.72873621,3505.9,3505.7,0.01080005]
[1641436028087,1.0,3505.8,3505.7,0.01080005]
[1641436029805,2.72873621,3505.9,3505.7,0.01080005]
[1641436030033,1.0,3505.8,3505.7,0.01080005]
[1641436032033,3.12322378,3505.8,3505.7,0.01080005]
[1641436032733,1.0,3505.8,3505.7,0.01080005]
[1641436033537,2.72873621,3505.9,3505.7,0.01080005]
[1641436034379,1.0,3505.8,3505.7,0.01080005]
[1641436035383,1.0,3505.8,3505.5,0.0119369]
[1641436035587,1.28448744,3505.9,3505.5,0.0119369]
[1641436036785,0.71316,3505.7,3505.5,0.0119369]
[1641436037730,1.13305022,3505.9,3505.5,0.0119369]
[1641436038331,1.13305022,3505.9,3505.5,1.4299369]
[1641436038531,1.13305022,3505.9,3505.5,0.0119369]
[1641436038728,1.13305022,3505.9,3505.6,0.01136847]
[1641436038929,1.13305022,3505.9,3505.5,0.0119369]
[1641436042990,1.13305022,3505.9,3505.5,1.4299369]
[1641436043188,1.13305022,3505.9,3505.5,1.46135592]
[1641436043389,1.13305022,3505.9,3505.6,0.01136847]
[1641436043587,3.6777,3506.5,3505.7,8.1]
[1641436043787,7.6382,3506.6,3505.7,8.1]
[1641436043788,3.9406,3506.6,3505.7,8.1]
[1641436043987,3.9406,3506.6,3505.8,0.01023163]
[1641436044189,3.9406,3506.6,3505.8,1.42823163]
[1641436044390,1.19516032,3506.5,3506.2,1.07834479]
[1641436044589,1.42588,3506.8,3506.2,1.07834479]
[1641436044788,1.42588,3506.8,3506.3,0.00738951]
[1641436045227,0.71293,3506.8,3506.3,0.00738951]
[1641436045830,1.10197302,3506.7,3506.4,0.00115554]
[1641436046234,1.10197302,3506.7,3506.5,0.00625266]
[1641436046635,0.71295,3506.7,3506.5,0.00625266]
[1641436049579,1.4259584,3506.7,3506.5,0.00625266]
[1641436049777,1.06824199,3506.6,3506.5,0.00625266]
[1641436049977,145.9264358,3505.9,3505.8,1.418]
[1641436050380,145.9264358,3505.9,3505.8,1.72197897]
[1641436051388,145.9264358,3505.9,3505.8,1.42197897]
[1641436051583,145.9264358,3505.9,3505.8,0.00397897]
[1641436051785,142.05614046,3505.9,3505.8,0.00397897]
[1641436051983,142.05614046,3505.9,3505.5,0.00568424]
[1641436053738,0.7131,3505.8,3505.5,0.00568424]
[1641436054339,0.7131,3505.8,3505.4,0.96793164]
[1641436054538,0.00113685,3505.7,3505.4,0.96793164]
[1641436054738,0.00113685,3505.7,3505.4,0.7122474]
[1641436055138,0.71423685,3505.7,3505.4,0.7122474]
[1641436055339,1.42736685,3505.7,3505.4,0.7122474]
[1641436056177,0.00113685,3505.7,3505.5,0.0011627]
[1641436061240,1.42757685,3505.7,3505.5,0.0011627]
[1641436061438,7.34366548,3505.6,3505.5,0.0011627]
[1641436061739,2.19366548,3505.6,3505.5,0.0011627]
[1641436063240,1.72757685,3505.7,3505.5,0.0011627]
[1641436063241,1.42757685,3505.7,3505.5,0.0011627]
[1641436063440,2.13528744,3505.6,3505.5,0.0011627]
[1641436063682,2.11045171,3505.6,3505.5,0.0011627]
[1641436064684,1.42757685,3505.7,3505.5,0.0011627]
[1641436064887,3.8619855,3505.7,3505.5,0.0011627]
[1641436065287,1.72757685,3505.7,3505.5,0.0011627]
[1641436066088,1.42757685,3505.7,3505.5,0.0011627]
[1641436067746,8.2,3505.5,3505.4,0.39282547]
[1641436067953,1.25894276,3505.1,3504.0,1.418]
[1641436068152,0.01279138,3504.6,3504.0,1.418]
[1641436068351,0.7135,3504.4,3504.1,0.00795792]
[1641436068551,1.0135,3504.4,3504.1,0.00795792]
[1641436068950,1.28652527,3504.3,3504.1,0.00795792]
[1641436069650,0.345,3504.2,3503.6,0.01080004]
[1641436070050,0.713663,3503.8,3503.5,1.37880004]
[1641436070350,1.38889068,3503.7,3503.3,0.7122474]
[1641436070551,2.10254068,3503.7,3503.3,0.7122474]
[1641436070751,2.10254068,3503.7,3503.4,0.00113685]
[1641436071193,0.71362,3503.6,3503.4,0.00113685]
[1641436071788,0.71362,3503.6,3502.4,1.418]
[1641436071789,2.38730614,3503.5,3502.4,1.418]
[1641436071990,2.38730614,3503.5,3501.8,1.90557985]
[1641436071991,0.71377,3502.9,3501.8,1.90557985]
[1641436072190,1.42778,3502.6,3502.5,0.00511581]
[1641436072587,1.72778,3502.6,3501.9,0.00852635]
[1641436072989,1.34066126,3502.1,3501.9,0.00852635]
[1641436073991,0.3,3502.0,3501.9,0.00852635]
[1641436074591,0.3,3502.0,3501.2,1.11535523]
[1641436074592,8.5,3502.0,3501.2,1.11535523]
[1641436074796,1.42823,3501.7,3501.2,1.11535523]
[1641436075034,1.42823,3501.7,3501.3,0.00341054]
[1641436075035,1.71008752,3501.6,3501.3,0.00341054]
[1641436075235,1.71008752,3501.6,3501.2,1.11535523]
[1641436075236,0.345,3501.6,3501.2,1.01876577]
[1641436075437,0.345,3501.6,3501.2,0.96876577]
[1641436075634,0.00113685,3501.5,3501.2,0.96876577]
[1641436076036,0.00113685,3501.5,3501.2,0.91876577]
[1641436077046,1.78543716,3502.2,3501.2,0.91876577]
[1641436077244,1.78543716,3502.2,3501.3,0.00274068]
[1641436077444,0.714,3501.8,3501.3,0.00274068]
[1641436077642,1.38743265,3501.6,3501.3,0.00274068]
[1641436078047,2.10144265,3501.6,3501.3,0.00274068]
[1641436078249,1.38743265,3501.6,3501.3,0.00274068]
[1641436079287,0.00113684,3501.7,3501.3,0.00274068]
[1641436079489,0.71401,3501.6,3501.3,0.00274068]
[1641436079889,1.01401,3501.6,3501.3,0.00274068]
[1641436080090,0.01259738,3501.4,3501.3,0.00274068]
[1641436080292,0.65759738,3501.4,3501.3,0.00274068]
[1641436080490,0.35759738,3501.4,3501.3,0.00274068]
[1641436081091,0.00113684,3501.7,3501.3,0.00274068]
[1641436081992,1.14207386,3501.7,3501.3,0.00274068]
[1641436082295,1.85608386,3501.7,3501.3,0.00274068]
[1641436082736,2.57007056,3501.7,3501.3,0.00274068]
[1641436082936,2.20107386,3501.7,3501.3,0.00274068]
[1641436083139,2.91510386,3501.7,3501.3,0.00274068]
[1641436083342,0.34613684,3501.7,3501.3,0.00274068]
[1641436083642,1.06013684,3501.7,3501.3,0.00274068]
[1641436084240,0.34613684,3501.7,3501.3,0.00274068]
[1641436084440,0.34613684,3501.7,3501.3,1.27674112]
[1641436085241,0.34613684,3501.7,3501.3,0.00274068]
[1641436086287,0.34613684,3501.7,3501.3,1.22646704]
[1641436086693,0.34613684,3501.7,3501.4,2.43852168]
[1641436086694,0.00113684,3501.7,3501.4,2.43852168]
[1641436086892,0.00113684,3501.7,3501.4,2.47427863]
[1641436087092,0.00113684,3501.7,3501.5,0.05188637]
[1641436087290,0.00113684,3501.7,3501.5,1.50829278]
[1641436087495,3.684e-05,3501.7,3501.6,10.69322615]
[1641436087691,3.684e-05,3501.7,3501.6,9.65851284]
[1641436087892,3.684e-05,3501.7,3501.6,9.61956305]
[1641436088094,3.684e-05,3501.7,3501.6,10.61956305]
[1641436088595,0.7137734,3503.0,3501.7,4.95]
[1641436088794,1.07503874,3502.4,3501.8,1.3423158]
[1641436088994,1.07503874,3502.4,3501.8,2.3423158]
[1641436089196,0.00682108,3502.9,3502.6,1.39084815]
[1641436089596,1.42735,3503.7,3502.6,1.39084815]
[1641436089796,1.42735,3503.7,3502.6,1.69084815]
[1641436090042,1.42735,3503.7,3502.7,1.45126391]
[1641436090043,1.43097409,3503.3,3502.7,1.45126391]
[1641436090240,0.71362,3503.5,3502.7,1.45126391]
[1641436090439,0.00852635,3503.2,3502.7,1.45126391]
[1641436090639,0.0096632,3503.4,3502.7,1.45126391]
[1641436090838,0.00795793,3503.1,3502.7,1.45126391]
[1641436091039,0.00909478,3503.3,3502.7,1.45126391]
[1641436091245,0.00738951,3503.0,3502.7,1.45126391]
[1641436091443,0.00852635,3503.2,3502.7,1.45126391]
[1641436091642,0.00682108,3502.9,3502.7,1.45126391]
[1641436091946,0.00625266,3502.8,3502.7,1.45126391]
[1641436092346,0.00625266,3502.8,3502.7,1.75126391]
[1641436092649,5.266e-05,3502.8,3502.7,9.95293606]
[1641436092945,2.00505618,3504.4,3502.8,8.2]
[1641436093144,2.00505618,3504.4,3502.9,2.66160945]
[1641436093345,0.00852635,3504.3,3503.0,0.3]
[1641436093544,0.00852635,3504.3,3503.6,1.5]
[1641436093794,2.00505618,3504.4,3503.7,1.51355121]
[1641436093795,0.00795793,3504.2,3503.7,1.51355121]
[1641436094197,0.00738951,3504.1,3503.7,1.51355121]
[1641436094399,0.00738951,3504.1,3503.7,1.81355121]
[1641436094600,0.00682108,3504.0,3503.7,0.3]
[1641436094798,0.00682108,3504.0,3503.6,1.5]
[1641436094999,0.00625266,3503.9,3503.6,1.8]
[1641436095398,0.00568424,3503.8,3503.6,1.8]
[1641436095803,1.29158618,3504.4,3503.6,1.5]
[1641436095804,0.00511581,3503.7,3503.6,1.5]
[1641436096804,1.21413765,3503.7,3503.6,1.5]
[1641436097005,0.00511581,3503.7,3503.6,1.5]
[1641436098541,0.00511581,3503.7,3503.6,1.5012913]
[1641436098945,0.30511581,3503.7,3503.6,1.5012913]
[1641436099947,0.00511581,3503.7,3503.6,1.5012913]
[1641436100146,0.00511581,3503.7,3502.9,0.68353351]
[1641436100350,0.00511581,3503.7,3503.6,1.5]
[1641436100548,1.2381163,3504.1,3503.6,1.5]
[1641436100949,0.00682108,3504.0,3503.6,1.5]
[1641436101391,0.00625266,3503.9,3503.6,1.5]
[1641436101791,0.00568424,3503.8,3503.6,1.5]
[1641436102193,0.00511581,3503.7,3503.6,1.5]
[1641436102593,0.00511581,3503.7,3503.6,7.3]
[1641436102793,0.00511581,3503.7,3503.6,7.6]
[1641436104198,0.00511581,3503.7,3503.6,7.63121167]
[1641436104398,0.00511581,3503.7,3503.6,10.17722546]
[1641436104597,0.00511581,3503.7,3503.6,11.44601379]
[1641436104798,0.00511581,3503.7,3503.6,8.9]
[1641436105040,0.00511581,3503.7,3503.6,14.193224]
[1641436105242,0.00511581,3503.7,3503.6,102.899516]
[1641436105440,0.00511581,3503.7,3503.6,97.951732]
[1641436105650,0.00511581,3503.7,3503.6,53.516]
[1641436105847,0.00511581,3503.7,3503.6,55.4168]
[1641436106046,0.00511581,3503.7,3503.6,55.412]
[1641436106248,0.00511581,3503.7,3503.6,13.2773507]
[1641436106448,9.63873539,3505.3,3503.7,8.15]
[1641436106749,0.00852635,3505.2,3503.8,1.0]
[1641436106952,0.00852635,3505.2,3504.5,1.5]
[1641436107148,9.63873539,3505.3,3504.5,1.5]
[1641436107149,0.00795793,3505.1,3504.5,1.5]
[1641436107549,1.80923539,3505.3,3504.5,2.65173708]
[1641436107550,0.00738951,3505.0,3504.5,2.65173708]
[1641436107848,1.80923539,3505.3,3504.5,1.5]
[1641436107849,0.00682108,3504.9,3504.5,1.5]
[1641436108252,1.80923539,3505.3,3504.5,1.5]
[1641436108253,0.00625266,3504.8,3504.5,1.5]
[1641436108689,0.00568424,3504.7,3504.5,1.5]
[1641436109087,1.80923539,3505.3,3504.5,1.5]
[1641436109088,0.00511581,3504.6,3504.5,1.5]
[1641436119591,0.00511581,3504.6,3504.5,1.50102566]
[1641436125189,0.00511581,3504.6,3504.5,2.13669834]
[1641436125390,0.00511581,3504.6,3504.5,5.40102566]
[1641436125989,0.71317,3505.4,3504.8,1.133586]
[1641436126189,0.71317,3505.4,3504.5,2.10102566]
[1641436126392,0.00397897,3505.3,3504.5,2.10102566]
[1641436126789,0.00341054,3505.2,3504.5,2.10102566]
[1641436127189,0.00284212,3505.1,3504.5,2.10102566]
[1641436127438,0.00284212,3505.1,3504.7,1.45464664]
[1641436127642,0.71317,3505.4,3504.7,1.45464664]
[1641436127643,0.0022737,3505.0,3504.7,1.75464664]
[1641436128044,0.00170527,3504.9,3504.7,0.3]
[1641436128348,0.00113685,3504.8,3504.5,2.10102566]
[1641436128753,0.00454739,3505.4,3504.5,2.10102566]
[1641436129248,0.00454739,3505.4,3504.7,1.33343712]
[1641436129446,0.71321,3505.2,3504.5,2.10102566]
[1641436129648,0.00454739,3505.4,3504.5,2.10102566]
[1641436129848,0.00284212,3505.1,3504.5,1.80102566]
[1641436130247,0.0022737,3505.0,3504.5,1.80102566]
[1641436130646,0.00170527,3504.9,3504.5,1.80102566]
[1641436131048,0.00113685,3504.8,3504.5,1.80102566]
[1641436131486,0.00341054,3505.2,3504.5,1.80102566]
[1641436131888,0.00284212,3505.1,3504.5,1.80102566]
[1641436132087,0.00284212,3505.1,3504.7,1.12508334]
[1641436132288,0.0022737,3505.0,3504.5,1.80102566]
[1641436132689,0.00170527,3504.9,3504.5,1.80102566]
[1641436133090,0.00113685,3504.8,3504.6,1.30191729]
[1641436133490,0.00341054,3505.2,3504.6,1.30191729]
[1641436133689,1.0,3505.1,3504.6,1.30191729]
[1641436133889,1.00284212,3505.1,3504.6,1.30191729]
[1641436134093,0.0022737,3505.0,3504.6,1.30191729]
[1641436134490,0.00170527,3504.9,3504.6,1.30191729]
[1641436134942,1.0,3505.1,3504.6,1.30191729]
[1641436134943,0.00113685,3504.8,3504.6,1.30191729]
[1641436135339,0.7522737,3505.1,3504.7,2.92131]
[1641436135541,0.7522737,3505.1,3504.9,1.17497394]
[1641436135740,0.7522737,3505.1,3504.9,1.47497394]
[1641436135941,0.7522737,3505.1,3504.9,0.3]
[1641436136144,0.7522737,3505.1,3504.8,0.3]
[1641436136440,0.7522737,3505.1,3504.7,2.02954497]
[1641436136644,0.6522737,3505.1,3504.8,0.07131]